bitfinex-derivatives/quotes_BTCF0:USTF0_20210409
["timestamp","ask_amount","ask_price","bid_price","bid_amount"]
[1617967982388,0.23495655,58824.0,58823.0,0.28515857]
[1617967982789,1.73495655,58824.0,58823.0,0.28515857]
[1617967983188,0.23495655,58824.0,58823.0,0.28515857]
[1617967983390,0.10725655,58824.0,58823.0,0.28515857]
[1617967984889,2.60725655,58824.0,58823.0,0.28515857]
[1617967985090,1.60725655,58824.0,58823.0,0.28515857]
[1617967985290,0.10725655,58824.0,58823.0,0.28515857]
[1617967985891,1.60725655,58824.0,58823.0,0.28515857]
[1617967986295,0.10725655,58824.0,58823.0,0.28515857]
[1617967986992,1.60725655,58824.0,58823.0,0.28515857]
[1617967987191,1.73070655,58824.0,58823.0,0.28515857]
[1617967988694,0.23070655,58824.0,58823.0,0.28515857]
[1617967988998,0.11164,58841.0,58826.0,3.0114]
[1617967989394,0.11164,58841.0,58836.0,0.10725655]
[1617967989797,2.5,58842.0,58837.0,0.28515848]
[1617967989995,1.5,58840.0,58837.0,0.28515848]
[1617967990697,1.0,58843.0,58841.0,3.1238]
[1617967990907,0.4517,58849.0,58841.0,3.1238]
[1617967990908,0.4517,58849.0,58841.0,3.24066]
[1617967991106,0.4517,58849.0,58842.0,0.27]
[1617967991297,0.4517,58849.0,58842.0,0.28515653]
[1617967991501,0.4517,58849.0,58848.0,0.10725655]
[1617967991699,0.43149218,58849.0,58848.0,0.10725655]
[1617967991924,0.43149218,58849.0,58848.0,0.12241229]
[1617967992208,0.43149218,58849.0,58848.0,4.2618]
[1617967992399,0.43149218,58849.0,58848.0,4.7318]
[1617967993401,0.43149218,58849.0,58848.0,4.83905655]
[1617967995405,0.43999302,58880.0,58848.0,6.33905655]
[1617967995643,0.43999302,58880.0,58848.0,3.07725655]
[1617967995923,0.43999302,58880.0,58879.0,2.6838]
[1617967996119,0.43999302,58880.0,58879.0,2.82848]
[1617967996318,0.43999302,58880.0,58879.0,4.09848]
[1617967996507,2.0,58886.0,58879.0,0.41468]
[1617967996907,2.43996967,58886.0,58879.0,0.41468]
[1617967997105,2.43996967,58886.0,58879.0,0.27]
[1617967997306,2.43996967,58886.0,58880.0,0.0151508]
[1617967997514,2.43996967,58886.0,58885.0,0.10725655]
[1617967997908,2.0,58886.0,58885.0,0.10725655]
[1617967998106,2.0,58886.0,58885.0,0.39240745]
[1617967998306,2.44029479,58886.0,58885.0,0.39240745]
[1617967998709,3.94029479,58886.0,58885.0,0.39240745]
[1617967999508,4.04755134,58886.0,58885.0,0.39240745]
[1617968001510,4.04755134,58886.0,58885.0,0.2851509]
[1617968001714,5.04755134,58886.0,58885.0,0.2851509]
[1617968002408,4.04755134,58886.0,58885.0,0.2851509]
[1617968002608,5.04755134,58886.0,58885.0,0.2851509]
[1617968006711,4.60725655,58886.0,58885.0,0.2851509]
[1617968007115,5.04743272,58886.0,58885.0,0.2851509]
[1617968007419,7.77413272,58886.0,58885.0,0.2851509]
[1617968007912,7.77413272,58886.0,58885.0,0.0078509]
[1617968008123,10.54764489,58886.0,58846.0,0.28250472]
[1617968008313,1.5,58873.0,58849.0,0.27]
[1617968008665,1.5,58873.0,58839.0,0.28285121]
[1617968008666,1.0,58850.0,58847.0,0.27]
[1617968008858,1.5,58849.0,58847.0,0.27]
[1617968009061,1.5,58849.0,58836.0,0.33942145]
[1617968009062,1.5,58849.0,58840.0,0.27]
[1617968009243,1.0,58848.0,58840.0,0.27]
[1617968009449,1.5,58847.0,58835.0,0.28350988]
[1617968009637,1.5,58844.0,58842.0,0.10725655]
[1617968010049,1.0,58847.0,58842.0,0.10725655]
[1617968010216,1.0,58849.0,58843.0,0.27]
[1617968010417,1.5,58848.0,58843.0,0.27]
[1617968010616,1.0,58846.0,58843.0,0.27]
[1617968010817,1.5,58846.0,58843.0,0.27]
[1617968011617,0.10725655,58844.0,58843.0,0.27]
[1617968011817,0.08705052,58844.0,58843.0,0.27]
[1617968013219,0.08705052,58844.0,58843.0,0.2851544]
[1617968025631,0.10725655,58850.0,58843.0,0.2851544]
[1617968026033,0.10725655,58850.0,58844.0,0.01515467]
[1617968026431,0.10725655,58850.0,58845.0,0.26]
[1617968026832,0.10725655,58850.0,58846.0,0.01515472]
[1617968027234,0.10725655,58850.0,58847.0,0.01]
[1617968027636,0.10725655,58850.0,58849.0,0.10725655]
[1617968028335,0.10725655,58850.0,58849.0,3.18951143]
[1617968031939,0.08705051,58850.0,58849.0,3.18951143]
[1617968035944,0.44109788,58863.0,58849.0,0.26083143]
[1617968036274,0.44109788,58863.0,58862.0,3.5193]
[1617968036565,0.4865,58876.0,58862.0,3.64125]
[1617968036566,0.44107302,58865.0,58862.0,3.64125]
[1617968036845,0.44107302,58865.0,58863.0,0.01515357]
[1617968037071,0.44107446,58867.0,58863.0,0.01515357]
[1617968037245,0.44107446,58867.0,58864.0,0.27]
[1617968037756,0.44107446,58867.0,58866.0,0.10725655]
[1617968038364,0.44107446,58867.0,58866.0,0.12241011]
[1617968038674,0.44107446,58867.0,58866.0,0.39241011]
[1617968042253,0.44107446,58867.0,58866.0,0.28515356]
[1617968042654,1.94107446,58867.0,58866.0,0.28515356]
[1617968043357,2.94107446,58867.0,58866.0,0.28515356]
[1617968043556,6.17606642,58867.0,58866.0,0.28515356]
[1617968043755,6.15986642,58867.0,58866.0,0.28515356]
[1617968044055,6.26409241,58867.0,58866.0,0.28515356]
[1617968044856,2.65069241,58867.0,58866.0,0.27995356]
[1617968045257,3.65069241,58867.0,58866.0,0.27995356]
[1617968048860,6.35889241,58867.0,58866.0,0.27995356]
[1617968049461,7.16735722,58867.0,58866.0,0.27995356]
[1617968049760,7.16735722,58867.0,58866.0,0.23795356]
[1617968051362,6.16735722,58867.0,58866.0,0.23795356]
[1617968051563,7.16735722,58867.0,58866.0,0.23795356]
[1617968051962,7.16735722,58867.0,58866.0,0.23775356]
[1617968052183,7.14715177,58867.0,58866.0,0.23775356]
[1617968052363,6.58340607,58867.0,58866.0,0.23775356]
[1617968053162,5.58340607,58867.0,58866.0,0.23775356]
[1617968053364,6.58340607,58867.0,58866.0,0.23775356]
[1617968054565,7.14715075,58867.0,58866.0,0.23775356]
[1617968056767,4.43895075,58867.0,58866.0,0.23775356]
[1617968057270,4.19423164,58867.0,58866.0,0.23775356]
[1617968058774,6.80143164,58867.0,58866.0,0.23775356]
[1617968059273,7.04472329,58867.0,58866.0,0.23775356]
[1617968059474,6.04472329,58867.0,58866.0,0.23775356]
[1617968059674,4.43752329,58867.0,58866.0,0.23775356]
[1617968059879,4.48892329,58867.0,58866.0,0.23775356]
[1617968060089,4.43752329,58867.0,58866.0,0.23775356]
[1617968060277,7.51583164,58867.0,58866.0,0.23775356]
[1617968060777,8.46571725,58867.0,58866.0,0.23775356]
[1617968061177,7.75912972,58867.0,58866.0,0.23775356]
[1617968061579,8.46566861,58867.0,58866.0,0.23775356]
[1617968062079,8.46566861,58867.0,58866.0,0.23674329]
[1617968070392,7.46566861,58867.0,58866.0,0.23674329]
[1617968070790,8.46566861,58867.0,58866.0,0.23674329]
[1617968071893,8.46566861,58867.0,58866.0,0.23654329]
[1617968072294,6.64811889,58867.0,58866.0,0.23654329]
[1617968072495,6.62791279,58867.0,58866.0,0.23654329]
[1617968072695,8.14122595,58867.0,58866.0,0.23553299]
[1617968076202,7.14122595,58867.0,58866.0,0.23553299]
[1617968076403,8.14122595,58867.0,58866.0,0.23553299]
[1617968078005,7.14122595,58867.0,58866.0,0.23553299]
[1617968078307,8.14122595,58867.0,58866.0,0.23553299]
[1617968084921,8.14122595,58867.0,58866.0,0.23452264]
[1617968086821,7.14122595,58867.0,58866.0,0.23452264]
[1617968087031,8.14122595,58867.0,58866.0,0.23452264]
[1617968091029,6.62791279,58867.0,58866.0,0.23452264]
[1617968091428,8.13978093,58867.0,58866.0,0.23452264]
[1617968092430,7.13978093,58867.0,58866.0,0.23452264]
[1617968092732,13.11957322,58867.0,58866.0,0.23452264]
[1617968093532,13.50519431,58867.0,58866.0,0.23452264]
[1617968093731,8.50519431,58867.0,58866.0,0.23452264]
[1617968093931,7.50519431,58867.0,58866.0,0.23452264]
[1617968094131,8.50519431,58867.0,58866.0,0.23452264]
[1617968094332,8.11957322,58867.0,58866.0,0.23452264]
[1617968095133,8.11957322,58867.0,58866.0,0.23351225]
[1617968095634,7.61561717,58867.0,58866.0,0.23351225]
[1617968095835,6.60770508,58867.0,58866.0,0.23351225]
[1617968096235,8.11957839,58867.0,58866.0,0.23351225]
[1617968098838,4.79797839,58867.0,58866.0,0.23351225]
[1617968099038,3.3383922,58867.0,58866.0,2.71741225]
[1617968099245,3.2184122,58867.0,58866.0,2.71741225]
[1617968100440,3.2184122,58867.0,58866.0,0.23351225]
[1617968100657,2.2184122,58867.0,58866.0,0.23351225]
[1617968100853,3.2184122,58867.0,58866.0,0.23351225]
[1617968101264,4.7184122,58867.0,58866.0,0.23351225]
[1617968101477,4.82281992,58867.0,58866.0,0.23351225]
[1617968101648,3.32281992,58867.0,58866.0,0.23351225]
[1617968101865,3.56346416,58867.0,58866.0,0.23351225]
[1617968102144,3.32281992,58867.0,58866.0,0.23351225]
[1617968103442,5.87471992,58867.0,58866.0,0.23351225]
[1617968103643,5.7703122,58867.0,58866.0,0.23351225]
[1617968104044,5.87472288,58867.0,58866.0,0.23351225]
[1617968104747,3.32282288,58867.0,58866.0,0.23351225]
[1617968105347,3.2184122,58867.0,58866.0,0.23250188]
[1617968111164,4.7184122,58867.0,58866.0,0.23250188]
[1617968111403,8.0285122,58867.0,58866.0,0.23250188]
[1617968111766,8.13295963,58867.0,58866.0,0.23250188]
[1617968112155,8.37373056,58867.0,58866.0,0.23250188]
[1617968112354,8.37353056,58867.0,58866.0,0.23250188]
[1617968112864,8.35332322,58867.0,58866.0,0.23250188]
[1617968113257,6.85332322,58867.0,58866.0,0.23250188]
[1617968115458,8.35332322,58867.0,58866.0,0.23250188]
[1617968116562,5.85332322,58867.0,58866.0,0.23149151]
[1617968116762,6.85332322,58867.0,58866.0,0.23149151]
[1617968117864,8.35332322,58867.0,58866.0,0.23149151]
[1617968118064,7.35332322,58867.0,58866.0,0.23149151]
[1617968118266,8.35332322,58867.0,58866.0,0.23149151]
[1617968119568,9.24176383,58867.0,58866.0,0.23149151]
[1617968120569,9.24176383,58867.0,58866.0,0.24664708]
[1617968121069,8.35332322,58867.0,58866.0,0.24664708]
[1617968121769,6.85332322,58867.0,58866.0,0.24664708]
[1617968121970,6.85332322,58867.0,58866.0,0.24644708]
[1617968122169,5.85332322,58867.0,58866.0,0.24644708]
[1617968122370,6.85332322,58867.0,58866.0,0.24644708]
[1617968122674,7.35332322,58867.0,58866.0,0.24644708]
[1617968122872,6.85332322,58867.0,58866.0,0.24644708]
[1617968123674,8.35332322,58867.0,58866.0,0.24644708]
[1617968123873,6.85332322,58867.0,58866.0,0.24644708]
[1617968124774,8.35332322,58867.0,58866.0,0.24644708]
[1617968125173,2.54322322,58867.0,58866.0,0.24644708]
[1617968125399,2.54322322,58867.0,58866.0,3.87234708]
[1617968125573,3.54322322,58867.0,58866.0,3.87234708]
[1617968125874,3.19800486,58867.0,58866.0,3.87234708]
[1617968126403,7.66550486,58867.0,58866.0,0.24644708]
[1617968126974,7.66550486,58867.0,58866.0,0.24543671]
[1617968127174,8.09711274,58867.0,58866.0,0.24543671]
[1617968128220,6.59711274,58867.0,58866.0,0.24543671]
[1617968128384,8.09711274,58867.0,58866.0,0.24543671]
[1617968129277,8.98549991,58867.0,58866.0,0.24543671]
[1617968132080,8.98549991,58867.0,58866.0,0.24503671]
[1617968132680,4.51799991,58867.0,58866.0,0.24503671]
[1617968132881,4.3963622,58867.0,58866.0,0.24503671]
[1617968133281,5.56618432,58867.0,58866.0,0.24503671]
[1617968133682,4.16774322,58867.0,58866.0,0.24503671]
[1617968134083,4.06618432,58867.0,58866.0,0.24503671]
[1617968134280,5.56618432,58867.0,58866.0,0.24503671]
[1617968134981,5.66774665,58867.0,58866.0,0.24503671]
[1617968135183,5.79432665,58867.0,58866.0,0.24503671]
[1617968135488,13.49942665,58867.0,58866.0,0.24503671]
[1617968135904,14.12081052,58867.0,58866.0,0.24503671]
[1617968136293,14.12081052,58867.0,58866.0,0.12213671]
[1617968137282,14.12081052,58867.0,58866.0,0.01515557]
[1617968137482,10.13064026,58867.0,58866.0,0.01515557]
[1617968138113,14.12081052,58867.0,58843.0,0.01515658]
[1617968138283,14.12081052,58867.0,58866.0,0.01515641]
[1617968138509,7.73741636,58867.0,58866.0,0.01515641]
[1617968138691,7.73741636,58867.0,58842.0,0.2]
[1617968138692,13.73741636,58867.0,58843.0,0.01515632]
[1617968139287,0.94934718,58844.0,58843.0,0.01515632]
[1617968139485,3.59205718,58844.0,58843.0,0.01515632]
[1617968139684,3.59205718,58844.0,58843.0,0.28515632]
[1617968139885,5.14245718,58844.0,58843.0,0.28515632]
[1617968140084,4.14245718,58844.0,58843.0,0.28515632]
[1617968140286,5.82061218,58844.0,58843.0,0.28515632]
[1617968140485,5.92786873,58844.0,58843.0,0.28515632]
[1617968141087,7.67694411,58844.0,58843.0,0.28515632]
[1617968142088,7.67694411,58844.0,58843.0,0.28495632]
[1617968143688,7.67694411,58844.0,58843.0,0.28394572]
[1617968144390,3.12654411,58844.0,58843.0,0.28394572]
[1617968145289,2.76488828,58844.0,58843.0,0.28394572]
[1617968145591,2.89572162,58844.0,58843.0,0.28394572]
[1617968146590,4.26488828,58844.0,58843.0,0.28394572]
[1617968146993,2.8957212,58844.0,58843.0,0.28394572]
[1617968147591,4.3957212,58844.0,58843.0,0.28394572]
[1617968147891,4.26488828,58844.0,58843.0,0.28394572]
[1617968148091,2.76488828,58844.0,58843.0,0.28394572]
[1617968148292,2.89572212,58844.0,58843.0,0.28394572]
[1617968148794,1.24996655,58844.0,58843.0,0.28394572]
[1617968149496,2.76054697,58844.0,58843.0,0.28394572]
[1617968149695,4.26054697,58844.0,58843.0,0.28394572]
[1617968150094,7.18324697,58844.0,58843.0,0.28394572]
[1617968150396,5.79553263,58844.0,58843.0,0.28394572]
[1617968150596,7.29553263,58844.0,58843.0,0.28394572]
[1617968150797,7.5440133,58844.0,58843.0,0.28394572]
[1617968151297,6.0440133,58844.0,58843.0,0.28394572]
[1617968151496,5.0440133,58844.0,58843.0,0.28394572]
[1617968151699,6.0440133,58844.0,58843.0,0.28394572]
[1617968152997,7.5440133,58844.0,58843.0,0.28394572]
[1617968153197,7.52380029,58844.0,58843.0,0.28394572]
[1617968154501,7.52380029,58844.0,58843.0,0.28293507]
[1617968155812,4.60110029,58844.0,58843.0,0.28293507]
[1617968156199,4.35261962,58844.0,58843.0,0.28293507]
[1617968157202,7.58261962,58844.0,58843.0,0.28293507]
[1617968157600,7.83073317,58844.0,58843.0,0.28293507]
[1617968162807,6.33073317,58844.0,58843.0,0.28293507]
[1617968163007,5.33073317,58844.0,58843.0,0.28293507]
[1617968163308,7.83073317,58844.0,58843.0,0.28293507]
[1617968163507,7.58261962,58844.0,58843.0,0.01293507]
[1617968163808,7.8326797,58844.0,58843.0,0.01293507]
[1617968164010,7.8326797,58844.0,58835.0,0.01516057]
[1617968164811,2.05284098,58836.0,58835.0,0.01516057]
[1617968165010,5.64794098,58836.0,58835.0,0.01516057]
[1617968165379,7.14794098,58836.0,58835.0,0.28516057]
[1617968165710,8.07460529,58836.0,58835.0,0.28516057]
[1617968166031,8.12560529,58836.0,58835.0,0.28516057]
[1617968166211,8.12560529,58836.0,58835.0,0.28414984]
[1617968166411,7.12560529,58836.0,58835.0,0.01414984]
[1617968166752,13.12560529,58836.0,58814.0,0.10725655]
[1617968166913,7.12560529,58836.0,58814.0,0.10725655]
[1617968167113,1.5,58828.0,58815.0,0.01516119]
[1617968167415,0.44264026,58816.0,58815.0,0.28516119]
[1617968167626,4.23115026,58816.0,58815.0,0.28516119]
[1617968167914,3.23115026,58816.0,58815.0,0.28516119]
[1617968168113,4.23115026,58816.0,58815.0,0.28516119]
[1617968168314,4.3488468,58816.0,58815.0,0.28516119]
[1617968168717,4.45610335,58816.0,58815.0,0.28516119]
[1617968169015,1.79180335,58816.0,58815.0,0.28516119]
[1617968169256,0.79180335,58816.0,58815.0,0.28516119]
[1617968169417,1.79180335,58816.0,58815.0,0.28516119]
[1617968169626,1.67410681,58816.0,58815.0,0.28516119]
[1617968169826,5.15480681,58816.0,58815.0,0.28516119]
[1617968170024,1.67410681,58816.0,58815.0,0.28516119]
[1617968170237,0.67410681,58816.0,58815.0,0.28516119]
[1617968170428,1.67410681,58816.0,58815.0,0.28516119]
[1617968170619,2.17718321,58816.0,58815.0,0.28516119]
[1617968171119,1.17718321,58816.0,58815.0,0.28516119]
[1617968171318,2.17718321,58816.0,58815.0,0.28516119]
[1617968171520,1.67410681,58816.0,58815.0,0.28516119]
[1617968173621,1.65388894,58816.0,58815.0,0.28516119]
[1617968179861,1.65388894,58816.0,58815.0,3.26856119]
[1617968179862,1.42242239,58816.0,58815.0,3.26856119]
[1617968180057,0.42242239,58816.0,58815.0,3.26856119]
[1617968180430,0.5020307,58825.0,58815.0,3.26856119]
[1617968180628,0.5020307,58825.0,58815.0,3.46856119]
[1617968180629,1.0,58823.0,58815.0,3.46856119]
[1617968180830,1.0,58823.0,58815.0,0.28516119]
[1617968181128,0.50202465,58826.0,58816.0,0.01516243]
[1617968181129,1.0,58818.0,58816.0,0.01516243]
[1617968181330,1.0,58823.0,58817.0,3.4437]
[1617968181528,1.0,58822.0,58817.0,3.7137]
[1617968181930,1.0,58822.0,58818.0,0.01516263]
[1617968182230,0.50202279,58826.0,58818.0,0.01516263]
[1617968182231,1.0,58820.0,58818.0,0.01516263]
[1617968182529,1.0,58820.0,58819.0,0.27]
[1617968182832,3.28805655,58820.0,58819.0,0.27]
[1617968183131,4.28805655,58820.0,58819.0,0.28516331]
[1617968183535,4.28805655,58820.0,58819.0,0.01516331]
[1617968183733,4.42109516,58820.0,58819.0,0.01516331]
[1617968184034,4.42109516,58820.0,58819.0,0.28516331]
[1617968184435,1.74236794,58820.0,58819.0,0.28516331]
[1617968185036,1.10725655,58820.0,58819.0,0.28516331]
[1617968185234,4.03705655,58820.0,58819.0,0.28516331]
[1617968185436,4.1701022,58820.0,58819.0,0.28516331]
[1617968185634,5.6701022,58820.0,58819.0,0.28516331]
[1617968185835,4.1701022,58820.0,58819.0,0.28516331]
[1617968186335,4.67217844,58820.0,58819.0,0.28516331]
[1617968186936,1.74237844,58820.0,58819.0,0.28516331]
[1617968187738,1.60933279,58820.0,58819.0,0.28516331]
[1617968188535,1.74256256,58820.0,58819.0,0.28516331]
[1617968188937,1.60933279,58820.0,58819.0,0.28516331]
[1617968190640,3.24619135,58820.0,58819.0,0.28516331]
[1617968190940,0.74619135,58820.0,58819.0,0.28516331]
[1617968191138,1.74619135,58820.0,58819.0,0.28516331]
[1617968191541,2.17286528,58820.0,58819.0,0.28516331]
[1617968192039,3.67286528,58820.0,58819.0,0.28516331]
[1617968192441,2.17286528,58820.0,58819.0,0.28516331]
[1617968193043,3.67286528,58820.0,58819.0,0.28516331]
[1617968193441,8.67286528,58820.0,58819.0,0.28516331]
[1617968193680,11.78514606,58820.0,58819.0,0.01516331]
[1617968193843,12.3679882,58820.0,58819.0,0.01516331]
[1617968194242,12.3679882,58820.0,58793.0,0.2]
[1617968194243,13.01123156,58820.0,58793.0,0.2]
[1617968194842,0.36200515,58799.0,58798.0,0.10725655]
[1617968195042,0.48206515,58799.0,58798.0,0.10725655]
[1617968195242,1.48206515,58799.0,58793.0,0.2]
[1617968195442,4.67366515,58799.0,58789.0,0.28978605]
[1617968195644,3.31166,58799.0,58798.0,0.27]
[1617968195846,3.31166,58799.0,58795.0,0.27]
[1617968196042,3.31166,58799.0,58781.0,0.29026315]
[1617968196043,4.26395485,58799.0,58781.0,0.29026315]
[1617968196242,4.26395485,58799.0,58789.0,0.27]
[1617968196443,0.44256314,58790.0,58786.0,0.27]
[1617968196943,0.10725655,58787.0,58782.0,0.27]
[1617968197144,1.0544947,58787.0,58777.0,0.37725655]
[1617968197342,1.0,58783.0,58777.0,0.10725655]
[1617968197544,1.0,58783.0,58778.0,0.27]
[1617968197842,1.0,58783.0,58777.0,0.10725655]
[1617968198043,1.36212276,58783.0,58778.0,0.27]
[1617968198349,1.0,58779.0,58778.0,0.27]
[1617968198743,1.10725655,58779.0,58778.0,0.27]
[1617968199744,1.46939729,58779.0,58778.0,0.28517066]
[1617968199943,1.46939729,58779.0,58778.0,0.01517066]
[1617968200144,1.46939729,58779.0,58778.0,0.28517066]
[1617968200447,1.46939729,58779.0,58778.0,0.01517066]
[1617968200846,1.46939729,58779.0,58778.0,0.27]
[1617968201245,1.46939729,58779.0,58778.0,0.01517073]
[1617968201744,1.46939729,58779.0,58772.0,0.27]
[1617968202043,0.46939729,58779.0,58778.0,0.28517093]
[1617968202343,2.5159,58774.0,58773.0,0.01517115]
[1617968202545,2.61841,58774.0,58773.0,0.01517115]
[1617968202934,3.61841,58774.0,58773.0,0.28517115]
[1617968203122,4.04155112,58774.0,58773.0,0.27]
[1617968203448,5.48796646,58774.0,58773.0,0.01517542]
[1617968203645,5.48796646,58774.0,58757.0,0.29197569]
[1617968203948,11.48796646,58774.0,58752.0,0.29225078]
[1617968204047,1.0,58758.0,58752.0,0.29225078]
[1617968204249,0.36251595,58753.0,58747.0,0.29249891]
[1617968204448,4.97281595,58753.0,58747.0,0.29249891]
[1617968204647,3.97281595,58753.0,58750.0,0.27]
[1617968204850,0.4698042,58751.0,58750.0,0.27]
[1617968205089,0.4698042,58751.0,58745.0,0.29265275]
[1617968205284,1.53052045,58751.0,58746.0,0.27]
[1617968205547,0.53052045,58751.0,58750.0,0.27]
[1617968205748,1.0,58748.0,58745.0,0.2926695]
[1617968205950,3.5160042,58751.0,58750.0,0.27]
[1617968206149,3.15345655,58751.0,58750.0,0.27]
[1617968206366,4.15345655,58751.0,58746.0,0.29259389]
[1617968206552,4.15345655,58751.0,58746.0,0.56259389]
[1617968206849,4.15345655,58751.0,58750.0,0.10725655]
[1617968206850,3.15345655,58751.0,58750.0,0.10725655]
[1617968207049,4.15345655,58751.0,58750.0,0.10725655]
[1617968207354,0.10725655,58751.0,58750.0,0.37725655]
[1617968209052,0.10725655,58751.0,58750.0,1.89243423]
[1617968209252,1.0,58771.0,58759.0,2.5435]
[1617968209452,0.359587,58775.0,58759.0,2.68648]
[1617968209651,1.0,58771.0,58760.0,0.27]
[1617968209854,1.0,58774.0,58760.0,0.28517748]
[1617968210152,1.0,58774.0,58761.0,0.01517718]
[1617968210552,0.90556858,58781.0,58761.0,0.01517718]
[1617968210553,1.0,58775.0,58762.0,0.27]
[1617968210753,0.3595398,58777.0,58763.0,1.5]
[1617968210954,0.10725655,58775.0,58774.0,0.10725655]
[1617968211153,0.10725655,58775.0,58774.0,0.25532655]
[1617968211554,0.10725655,58775.0,58774.0,0.52532655]
[1617968211757,0.10725655,58775.0,58774.0,0.54050105]
[1617968211956,0.10725655,58775.0,58774.0,2.04050105]
[1617968212156,0.4661,58781.0,58774.0,0.54050105]
[1617968212356,0.4661,58781.0,58777.0,3.4337]
[1617968212756,0.4661,58781.0,58778.0,0.27]
[1617968212959,0.4661,58781.0,58780.0,0.10725655]
[1617968213360,0.4661,58781.0,58780.0,0.39243034]
[1617968213561,1.4661,58781.0,58780.0,0.39243034]
[1617968213862,5.0932,58781.0,58780.0,0.39243034]
[1617968214061,5.07296907,58781.0,58780.0,0.39243034]
[1617968214264,4.07296907,58781.0,58780.0,0.39243034]
[1617968214460,5.07296907,58781.0,58780.0,0.39243034]
[1617968214761,5.12326907,58781.0,58780.0,0.39243034]
[1617968214961,5.07296907,58781.0,58780.0,0.28517379]
[1617968215662,5.43257468,58781.0,58780.0,0.28517379]
[1617968217165,5.8721127,58781.0,58780.0,0.28517379]
[1617968218173,5.43257468,58781.0,58780.0,0.28517379]
[1617968218367,5.53423468,58781.0,58780.0,0.28517379]
[1617968218970,2.3464545,58781.0,58780.0,0.28416202]
[1617968219168,1.90713468,58781.0,58780.0,0.28416202]
[1617968220468,1.80547468,58781.0,58780.0,0.28416202]
[1617968220868,4.49537468,58781.0,58780.0,0.28416202]
[1617968221470,3.49537468,58781.0,58780.0,0.28416202]
[1617968221900,4.49537468,58781.0,58780.0,0.28416202]
[1617968224372,4.13576907,58781.0,58780.0,0.28416202]
[1617968225686,3.13576907,58781.0,58780.0,0.28416202]
[1617968227076,3.13576907,58781.0,58780.0,0.39141857]
[1617968227889,3.13576907,58781.0,58780.0,0.28416202]
[1617968228079,4.13576907,58781.0,58780.0,0.28416202]
[1617968229081,4.495432,58781.0,58780.0,0.28416202]
[1617968230383,4.546032,58781.0,58780.0,0.28416202]
[1617968230686,4.546032,58781.0,58780.0,0.25836202]
[1617968231182,4.495432,58781.0,58780.0,0.20686202]
[1617968234188,4.4751974,58781.0,58780.0,0.20686202]
[1617968235106,3.4751974,58781.0,58780.0,0.20686202]
[1617968235288,0.42563447,58781.0,58780.0,0.31411857]
[1617968240593,0.42563447,58781.0,58780.0,1.81411857]
[1617968240993,0.42563447,58781.0,58780.0,0.31411857]
[1617968244696,0.42563447,58781.0,58780.0,1.81411857]
[1617968245598,0.42563447,58781.0,58780.0,2.01411857]
[1617968247601,0.42563447,58781.0,58780.0,0.51411857]
[1617968249003,0.42563447,58781.0,58780.0,2.01411857]
[1617968249405,0.42563447,58781.0,58780.0,2.02929169]
[1617968250306,0.36100298,58785.0,58780.0,2.02929169]
[1617968250706,0.36122377,58786.0,58780.0,2.02929169]
[1617968251105,0.36122377,58786.0,58781.0,0.01517199]
[1617968251407,0.14828765,58809.0,58781.0,0.01517199]
[1617968251408,0.36122084,58788.0,58781.0,0.01517199]
[1617968251605,0.36122084,58788.0,58782.0,0.27]
[1617968251806,0.36122566,58787.0,58782.0,0.27]
[1617968252414,0.36122566,58787.0,58783.0,0.01517229]
[1617968252731,0.36122717,58786.0,58783.0,0.01517229]
[1617968252907,0.36122874,58785.0,58783.0,0.01517229]
[1617968253131,0.36122874,58785.0,58784.0,0.27]
[1617968253506,3.64912874,58785.0,58784.0,0.28517244]
[1617968253806,4.64912874,58785.0,58784.0,0.28517244]
[1617968254006,5.15130785,58785.0,58784.0,0.01517244]
[1617968254208,1.86340785,58785.0,58784.0,0.01517244]
[1617968254407,1.40168871,58785.0,58784.0,0.28517244]
[1617968254608,1.40168871,58785.0,58784.0,0.37781]
[1617968254809,1.84445383,58785.0,58784.0,0.37781]
[1617968255007,0.84445383,58785.0,58784.0,0.39298299]
[1617968255207,0.84445383,58785.0,58784.0,1.89298299]
[1617968255609,0.84445383,58785.0,58784.0,0.39298299]
[1617968255807,0.78376332,58785.0,58784.0,0.39298299]
[1617968256207,0.78376332,58785.0,58784.0,1.89298299]
[1617968256709,0.3409982,58785.0,58784.0,1.89298299]
[1617968256908,0.3409982,58785.0,58784.0,0.39298299]
[1617968258408,3.41235655,58795.0,58784.0,0.39298299]
[1617968258908,0.44272316,58787.0,58784.0,0.39298299]
[1617968259109,0.44272316,58787.0,58785.0,0.01517152]
[1617968259310,0.44272316,58787.0,58786.0,0.10725655]
[1617968259511,0.44272316,58787.0,58786.0,0.37725655]
[1617968259711,0.44272316,58787.0,58786.0,3.27045655]
[1617968259913,0.44272316,58787.0,58786.0,3.28562801]
[1617968262113,0.44253761,58788.0,58786.0,3.28562801]
[1617968262713,0.44253761,58788.0,58787.0,0.01517141]
[1617968263216,0.44253761,58788.0,58787.0,0.28517141]
[1617968268216,0.44253761,58788.0,58787.0,1.78517141]
[1617968270418,0.10725655,58795.0,58787.0,1.78517141]
[1617968270419,0.44283605,58789.0,58787.0,1.78517141]
[1617968270919,0.44283605,58789.0,58788.0,0.01517089]
[1617968271321,0.44283605,58789.0,58788.0,0.28517089]
[1617968271520,0.44283605,58789.0,58788.0,1.78517089]
[1617968273827,0.44273883,58790.0,58788.0,1.78517089]
[1617968274227,0.44273959,58789.0,58788.0,1.78517089]
[1617968274427,0.42251214,58789.0,58788.0,1.77]
[1617968274625,0.06068205,58789.0,58788.0,1.77]
[1617968274824,0.06068205,58789.0,58788.0,1.78517048]
[1617968275025,0.10725655,58795.0,58788.0,1.78517048]
[1617968275026,0.06068189,58794.0,58788.0,1.78517048]
[1617968275226,0.06068189,58794.0,58789.0,0.2]
[1617968275626,0.06068189,58794.0,58793.0,0.10725655]
[1617968276125,0.06068189,58794.0,58793.0,0.37725655]
[1617968276425,0.06068189,58794.0,58793.0,0.39242676]
[1617968277627,0.10725655,58795.0,58793.0,0.39242676]
[1617968278030,0.6108371,58795.0,58793.0,0.39242676]
[1617968278228,0.6108371,58795.0,58794.0,0.01517042]
[1617968278643,0.6108371,58795.0,58794.0,0.28517042]
[1617968282538,0.10725655,58795.0,58794.0,0.28517042]
[1617968283538,0.61084012,58795.0,58794.0,0.28517042]
[1617968283837,0.97344826,58795.0,58794.0,0.28517042]
[1617968284339,0.46986469,58795.0,58794.0,0.28517042]
[1617968284538,0.46986469,58795.0,58794.0,0.43227042]
[1617968287543,0.46986469,58795.0,58794.0,3.30987042]
[1617968287745,0.36260814,58795.0,58794.0,3.30987042]
[1617968289147,0.8670283,58795.0,58794.0,3.30987042]
[1617968289448,0.8670283,58795.0,58794.0,3.2947]
[1617968289747,0.8670283,58795.0,58794.0,3.3098695]
[1617968290547,0.50442016,58795.0,58794.0,3.3098695]